bitfinex/quotes_SOLUSD_20250718
["timestamp","ask_amount","ask_price","bid_price","bid_amount"]
[1752830144950,18.30410013,179.91,179.9,0.03]
[1752830145161,17.70410013,179.91,179.9,0.03]
[1752830146386,18.30410013,179.91,179.9,0.03]
[1752830146574,5.55833472,179.91,179.9,0.03]
[1752830146750,34.4887841,179.91,179.9,0.03]
[1752830147972,35.0887841,179.91,179.9,0.03]
[1752830148380,22.34301869,179.91,179.9,0.03]
[1752830148569,34.4887841,179.91,179.9,0.03]
[1752830150665,16.78468397,179.9,179.89,1e-08]
[1752830150879,61.07044938,179.9,179.89,1e-08]
[1752830151069,66.62909307,179.9,179.89,1e-08]
[1752830158983,69.67129724,179.9,179.89,1e-08]
[1752830160427,62.07731245,179.9,179.89,1e-08]
[1752830160600,16.78468397,179.9,179.89,0.71000001]
[1752830160767,5.55801397,179.93,179.89,8.3039848]
[1752830160967,5.55801397,179.93,179.92,7.59398479]
[1752830161186,16.78468397,179.95,179.92,8.30398479]
[1752830161361,36.91679039,179.96,179.93,0.71]
[1752830161781,36.91679039,179.96,179.9,1.6474]
[1752830161978,16.78468397,179.95,179.9,9.95138479]
[1752830162181,24.37866876,179.93,179.9,1.6474]
[1752830162382,24.37866876,179.93,179.89,1e-08]
[1752830162590,7.59398479,179.9,179.89,1e-08]
[1752830162888,55.69866876,179.9,179.89,1e-08]
[1752830163096,60.8494663,179.9,179.89,1e-08]
[1752830163671,66.40810999,179.9,179.89,1e-08]
[1752830164475,92.40810999,179.9,179.89,1e-08]
[1752830164701,16.78468397,179.87,179.86,1e-08]
[1752830164899,60.2294663,179.87,179.86,1e-08]
[1752830165069,60.8294663,179.87,179.86,1e-08]
[1752830165871,66.3890371,179.87,179.86,1e-08]
[1752830166491,53.64425477,179.87,179.86,1e-08]
[1752830166681,65.7890371,179.87,179.86,1e-08]
[1752830167473,66.3890371,179.87,179.86,1e-08]
[1752830167988,65.7890371,179.87,179.86,1e-08]
[1752830168497,66.3890371,179.87,179.86,1e-08]
[1752830170195,53.64425477,179.87,179.86,1e-08]
[1752830170499,66.3890371,179.87,179.86,1e-08]
[1752830172375,65.7890371,179.87,179.86,1e-08]
[1752830172573,22.34425477,179.87,179.86,1e-08]
[1752830172810,5.55926752,179.88,179.86,0.71000001]
[1752830172982,16.78468397,179.87,179.86,0.71000001]
[1752830173300,26.14868122,179.87,179.86,0.71000001]
[1752830173497,31.70825202,179.87,179.86,1e-08]
[1752830173976,19.56346969,179.87,179.86,1e-08]
[1752830174171,31.70825202,179.87,179.86,1e-08]
[1752830175300,19.56346969,179.87,179.86,1e-08]
[1752830175502,31.70825202,179.87,179.86,1e-08]
[1752830178102,19.56346969,179.87,179.86,1e-08]
[1752830178477,31.70825202,179.87,179.86,1e-08]
[1752830178981,32.30825202,179.87,179.86,1e-08]
[1752830179173,32.30825202,179.87,179.83,1e-08]
[1752830179174,16.78468397,179.85,179.83,1e-08]
[1752830179372,59.9494663,179.84,179.83,1e-08]
[1752830180181,65.50996452,179.84,179.83,1e-08]
[1752830180580,66.10996452,179.84,179.83,1e-08]
[1752830180904,16.78468397,179.83,179.8,0.03]
[1752830181097,59.9294663,179.82,179.8,0.03]
[1752830181304,59.9294663,179.82,179.81,1e-08]
[1752830181478,60.5294663,179.82,179.81,1e-08]
[1752830181978,16.78468397,179.81,179.8,1e-08]
[1752830182191,35.09089224,179.81,179.8,1e-08]
[1752830182505,34.49089224,179.81,179.8,1e-08]
[1752830182886,22.34610991,179.81,179.8,1e-08]
[1752830183092,34.49089224,179.81,179.8,0.71000001]
[1752830183298,22.34610991,179.81,179.8,0.71000001]
[1752830183492,34.49089224,179.81,179.8,0.71000001]
[1752830184107,34.49089224,179.81,179.8,1e-08]
[1752830186001,22.34610991,179.81,179.8,1e-08]
[1752830186176,34.49089224,179.81,179.8,1e-08]
[1752830186380,22.34610991,179.81,179.8,0.71000001]
[1752830188211,13.8993163,179.87,179.8,12.85478234]
[1752830188412,47.64468397,179.86,179.82,12.14478233]
[1752830188710,22.34456387,179.86,179.84,13.66618233]
[1752830188909,22.34456387,179.86,179.85,12.84478233]
[1752830189306,22.34456387,179.86,179.85,0.7]
[1752830190914,16.78468397,179.86,179.85,0.7]
[1752830191115,16.78468397,179.86,179.85,12.84478233]
[1752830192110,16.78468397,179.86,179.85,0.7]
[1752830192511,5.5598799,179.86,179.85,0.7]
[1752830192695,16.78468397,179.86,179.85,0.7]
[1752830193825,5.5598799,179.86,179.85,0.7]
[1752830196019,16.78468397,179.86,179.85,0.7]
[1752830197897,28.9294663,179.86,179.84,1.5214]
[1752830198106,22.34487301,179.85,179.84,2.2214]
[1752830198434,16.78468397,179.84,179.8,1e-08]
[1752830198643,28.9294663,179.81,179.8,1e-08]
[1752830198935,59.6094663,179.81,179.8,1e-08]
[1752830199100,55.66273075,179.81,179.8,1e-08]
[1752830199517,63.26077753,179.81,179.8,1e-08]
[1752830199725,55.66273075,179.81,179.8,1e-08]
[1752830200122,61.22415669,179.81,179.8,1e-08]
[1752830201125,65.78661562,179.81,179.8,1e-08]
[1752830201345,53.62610991,179.81,179.8,1e-08]
[1752830201632,65.78661562,179.81,179.8,1e-08]
[1752830201845,52.98610991,179.81,179.8,1e-08]
[1752830202001,16.78468397,179.8,179.78,0.03]
[1752830202320,16.78468397,179.8,179.72,0.2]
[1752830202321,22.34703795,179.78,179.72,0.2]
[1752830202505,28.94518968,179.75,179.72,0.2]
[1752830202702,59.86518968,179.75,179.72,0.2]
[1752830203401,16.78468397,179.74,179.72,0.2]
[1752830203629,28.94518968,179.74,179.72,0.2]
[1752830203802,29.54518968,179.74,179.72,0.2]
[1752830204002,60.48518968,179.73,179.72,1e-08]
[1752830204236,60.48518968,179.73,179.62,0.9]
[1752830204237,42.78468397,179.69,179.62,0.9]
[1752830204437,28.94518968,179.63,179.62,0.2]
[1752830205699,28.94518968,179.63,179.62,0.9]
[1752830205910,59.86518968,179.63,179.62,0.9]
[1752830206209,65.43218851,179.63,179.62,0.2]
[1752830206407,66.03218851,179.63,179.62,0.2]
[1752830206803,65.43218851,179.63,179.62,0.2]
[1752830207805,34.51218851,179.63,179.62,0.2]
[1752830208016,65.41218851,179.63,179.62,0.2]
[1752830208208,22.3516828,179.63,179.62,0.2]
[1752830208410,65.41218851,179.63,179.62,0.2]
[1752830210827,16.78468397,179.59,179.54,0.7]
[1752830211133,30.84,179.58,179.55,0.7]
[1752830211322,43.00050571,179.58,179.56,0.7]
[1752830211524,43.00050571,179.58,179.53,12.16050571]
[1752830211525,28.94518968,179.57,179.53,0.7]
[1752830211732,16.78468397,179.55,179.54,0.7]
[1752830212026,28.94518968,179.55,179.54,0.7]
[1752830212227,28.94518968,179.55,179.51,2.3325]
[1752830212410,16.78468397,179.53,179.52,0.7]
[1752830212816,12.16050571,179.54,179.52,0.7]
[1752830213135,16.78468397,179.53,179.52,0.7]
[1752830213932,16.78468397,179.53,179.51,1.6325]
[1752830213933,16.78468397,179.52,179.51,1.6325]
[1752830214232,59.72518968,179.52,179.51,1.6325]
[1752830214441,65.29559966,179.52,179.51,1.6325]
[1752830214636,65.29559966,179.52,179.49,0.7]
[1752830215135,16.78468397,179.49,179.45,0.7]
[1752830215318,16.78468397,179.46,179.45,0.7]
[1752830216038,16.78468397,179.46,179.43,2.3107]
[1752830216226,16.78468397,179.46,179.44,0.7]
[1752830216610,16.78468397,179.46,179.43,13.77120571]
[1752830216611,16.78468397,179.46,179.45,0.7]
[1752830216814,28.94518968,179.46,179.43,1.6107]
[1752830217011,28.94518968,179.44,179.43,1.6107]
[1752830217208,12.16050571,179.44,179.41,7.1002]
[1752830217616,16.78468397,179.45,179.42,12.83050571]
[1752830217846,16.78468397,179.45,179.43,0.67]
[1752830218014,16.78468397,179.45,179.44,0.67]
[1752830218428,28.94518968,179.45,179.41,6.4302]
[1752830218721,12.16050571,179.44,179.42,0.67]
[1752830218924,22.3573372,179.45,179.42,0.67]
[1752830218925,34.51784291,179.45,179.42,0.67]
[1752830219110,34.51784291,179.45,179.43,0.67]
[1752830219309,65.25784291,179.45,179.43,0.67]
[1752830219535,53.0973372,179.45,179.41,7.1002]
[1752830219738,65.25784291,179.45,179.41,6.4302]
[1752830219919,65.25779216,179.45,179.42,0.67]
[1752830220117,59.68518968,179.45,179.42,0.67]
[1752830220321,47.52468397,179.45,179.43,0.67]
[1752830220615,10.28725005,179.49,179.44,12.83050571]
[1752830220616,16.78468397,179.48,179.44,12.83050571]
[1752830220843,9.68725005,179.49,179.47,12.16050571]
[1752830221136,5.56885894,179.57,179.48,12.83050571]
[1752830221320,16.78468397,179.55,179.51,12.16050571]
[1752830221518,16.78468397,179.55,179.46,33.3]
[1752830221519,59.68518968,179.55,179.52,0.67]
[1752830221820,16.78468397,179.53,179.49,12.16050571]
[1752830222128,59.68518968,179.53,179.48,12.16050571]
[1752830222329,47.52468397,179.53,179.5,12.83050571]
[1752830222520,47.52468397,179.53,179.51,12.16050571]
[1752830222715,47.52468397,179.53,179.52,0.67]
[1752830223314,47.52468397,179.53,179.5,12.16050571]
[1752830223511,47.52468397,179.53,179.51,0.67]
[1752830223917,53.09495075,179.53,179.49,12.16050571]
[1752830224124,65.25545646,179.53,179.49,0.67]
[1752830224522,16.78468397,179.5,179.47,0.67]
[1752830224836,12.16050571,179.51,179.47,0.67]
[1752830224837,16.78468397,179.51,179.47,12.83050571]
[1752830225018,16.78468397,179.51,179.48,0.67]
[1752830225925,17.73091569,179.52,179.49,0.67]
[1752830225926,16.78468397,179.52,179.49,0.67]
[1752830226147,28.94518968,179.52,179.47,0.67]
[1752830226340,28.94518968,179.52,179.47,12.83050571]
[1752830226523,16.78468397,179.48,179.45,14.49360571]
[1752830226844,16.78468397,179.48,179.45,40.49360571]
[1752830227232,16.78468397,179.48,179.45,28.3331]
[1752830227435,16.78468397,179.48,179.45,2.3331]
[1752830227823,16.78468397,179.48,179.46,0.67]
[1752830228025,16.78468397,179.48,179.47,0.67]
[1752830228456,16.78468397,179.48,179.45,14.52360571]
[1752830228751,16.78468397,179.48,179.46,12.83050571]
[1752830229046,16.78468397,179.48,179.47,0.67]
[1752830229555,30.74,179.49,179.47,12.83050571]
[1752830229739,16.78468397,179.58,179.48,12.83050571]
[1752830229934,16.78468397,179.56,179.52,12.16050571]
[1752830230147,16.78468397,179.56,179.45,41.12289528]
[1752830230148,16.78468397,179.54,179.53,12.16050571]
[1752830230339,12.16050571,179.59,179.53,0.67]
[1752830230525,30.7,179.58,179.54,12.16050571]
[1752830230726,22.35354291,179.57,179.54,0.67]
[1752830230931,22.35354291,179.57,179.52,12.16050571]
[1752830230932,16.78468397,179.55,179.52,12.16050571]
[1752830231250,16.78468397,179.55,179.53,0.67]
[1752830231449,16.78468397,179.55,179.51,12.16050571]
[1752830231660,42.86050571,179.54,179.5,7.2632]
[1752830231957,16.78468397,179.53,179.5,0.67]
[1752830232259,16.78468397,179.53,179.51,0.67]
[1752830233028,16.78468397,179.53,179.52,0.67]
[1752830233229,30.7,179.54,179.52,12.83050571]
[1752830233461,16.78468397,179.55,179.53,0.67]
[1752830233645,16.78468397,179.55,179.54,12.83050571]
[1752830234049,5.56783166,179.61,179.55,1.5944]
[1752830234263,16.78468397,179.61,179.6,12.16050571]
[1752830234561,30.74,179.62,179.6,12.83050571]
[1752830234757,30.74,179.62,179.6,12.16050571]
[1752830234946,30.74,179.62,179.61,0.67]
[1752830235131,30.74,179.62,179.61,12.83050571]
[1752830235450,0.06,179.62,179.61,12.83050571]
[1752830236679,0.06,179.62,179.61,18.39812443]
[1752830237031,5.56483125,179.7,179.61,52.2548863]
[1752830237257,16.78468397,179.69,179.67,12.16050571]
[1752830237561,16.78468397,179.69,179.68,12.83050571]
[1752830237852,5.56455426,179.71,179.68,12.83050571]
[1752830238152,36.1842311,179.72,179.68,12.83050571]
[1752830238331,16.78468397,179.71,179.66,2.1898]
[1752830238529,16.78468397,179.71,179.67,12.16050571]
[1752830238722,5.56483027,179.7,179.67,12.16050571]
[1752830239127,22.34927199,179.71,179.67,12.83050571]
[1752830239329,22.34931839,179.71,179.68,0.67]
[1752830239532,22.34931839,179.71,179.67,12.16050571]
[1752830240162,22.34931839,179.71,179.67,12.83050571]
[1752830241253,0.06,179.75,179.74,59.3]
[1752830241455,0.06,179.75,179.71,7.7584]
[1752830241456,0.06,179.75,179.72,12.16050571]
[1752830241655,0.06,179.75,179.71,1.6283]
[1752830241656,0.66,179.74,179.71,1.6283]
[1752830241840,0.66,179.73,179.69,12.16050571]
[1752830242152,36.18337823,179.75,179.71,12.16050571]
[1752830242360,0.06,179.75,179.72,12.16050571]
[1752830242536,0.06,179.75,179.73,12.16050571]
[1752830242950,0.06,179.75,179.68,38.86533048]
[1752830243272,16.78468397,179.74,179.7,12.16050571]
[1752830243456,16.78468397,179.72,179.71,12.16050571]
[1752830244063,17.44468397,179.72,179.68,12.16050571]
[1752830244258,47.28468397,179.72,179.68,12.16050571]
[1752830244553,47.28468397,179.72,179.69,12.16050571]
[1752830244734,47.28468397,179.72,179.7,12.16050571]
[1752830244934,30.5,179.72,179.71,12.16050571]
[1752830245135,0.06,179.75,179.71,17.72488793]
[1752830245462,0.06,179.75,179.74,12.16050571]
[1752830251845,0.06,179.75,179.71,38.86428916]
[1752830252164,16.78468397,179.74,179.73,26.0]
[1752830252363,0.06,179.75,179.73,38.16050571]
[1752830253071,0.06,179.75,179.74,12.16050571]
[1752830253945,0.06,179.75,179.72,26.0]
[1752830254148,0.06,179.75,179.74,12.16050571]
[1752830255257,0.06,179.75,179.74,17.72409756]
[1752830257675,0.06,179.75,179.74,82.92639756]
[1752830257851,0.06,179.75,179.74,234.87739756]
[1752830258671,0.06,179.75,179.74,229.32639756]
[1752830260486,0.06,179.75,179.74,217.16589185]
[1752830260663,0.06,179.75,179.74,229.32639756]
[1752830261795,0.06,179.75,179.74,77.34579185]
[1752830261992,0.06,179.75,179.74,59.68265674]
[1752830262287,0.06,179.75,179.74,103.30280571]
[1752830262506,0.06,179.75,179.74,77.30280571]
[1752830262803,17.55468397,179.75,179.7,1.6566]
[1752830262970,29.00518968,179.75,179.7,77.45710571]
[1752830263163,16.78468397,179.72,179.66,5.56606924]
[1752830263370,12.16050571,179.71,179.66,42.50050571]
[1752830263667,16.78468397,179.68,179.64,12.16050571]
[1752830263873,0.71,179.67,179.64,12.16050571]
[1752830264265,0.71,179.67,179.63,75.82050571]
[1752830264489,0.71,179.66,179.63,75.82050571]
[1752830264985,0.71,179.66,179.65,26.0]
[1752830265375,0.71,179.66,179.63,75.82050571]
[1752830265771,0.71,179.66,179.65,26.0]
[1752830265971,0.71,179.65,179.62,12.16050571]
[1752830266387,17.49468397,179.67,179.63,12.16050571]
[1752830266582,16.78468397,179.67,179.63,12.16050571]
[1752830266773,0.71,179.66,179.63,12.16050571]
[1752830268789,6.27622234,179.66,179.63,12.16050571]
[1752830268990,0.71,179.65,179.62,12.16050571]
[1752830269315,17.49468397,179.64,179.63,26.0]
[1752830269478,12.87050571,179.64,179.61,0.03]
[1752830269677,0.71,179.63,179.61,0.03]
[1752830270674,30.28,179.67,179.62,12.16050571]
[1752830270675,0.71,179.66,179.62,12.16050571]
[1752830270999,17.49468397,179.65,179.62,12.16050571]
[1752830271300,0.71,179.64,179.61,12.19050571]
[1752830271676,0.71,179.63,179.61,0.03]
[1752830271902,17.49468397,179.63,179.61,0.03]
[1752830272213,16.78468397,179.62,179.61,0.03]
[1752830272385,16.78468397,179.67,179.61,222.13050571]
[1752830272696,16.78468397,179.67,179.65,12.16050571]
[1752830272882,16.78468397,179.67,179.63,30.26]
[1752830273074,16.78468397,179.67,179.65,12.16050571]
[1752830273476,16.78468397,179.67,179.64,12.16050571]
[1752830273706,17.49468397,179.67,179.64,12.16050571]
[1752830274379,16.78468397,179.67,179.63,30.26]
[1752830274576,0.71,179.66,179.64,12.16050571]
[1752830274902,0.71,179.65,179.61,179.73]
[1752830275200,0.71,179.64,179.61,158.59050571]
[1752830275409,16.78468397,179.64,179.61,146.43]
[1752830275582,17.49468397,179.64,179.63,0.03]
[1752830276102,23.0613729,179.64,179.63,0.03]
[1752830277104,17.49468397,179.64,179.63,0.03]
[1752830277486,23.04075321,179.66,179.63,0.03]
[1752830277893,0.69,179.65,179.63,0.03]
[1752830278303,0.69,179.64,179.63,0.03]
[1752830278694,6.25668893,179.64,179.63,0.03]
[1752830278905,18.41719464,179.64,179.63,0.03]
[1752830279780,35.20187861,179.64,179.63,0.03]
[1752830280416,0.69,179.64,179.63,0.03]
[1752830280715,30.91,179.67,179.63,12.19050571]
[1752830280889,0.69,179.67,179.64,12.16050571]
[1752830281481,12.16050571,179.67,179.63,0.03]
[1752830281709,12.85050571,179.66,179.63,0.03]
[1752830282010,0.69,179.66,179.63,12.19050571]
[1752830282612,0.69,179.68,179.64,12.16050571]
[1752830282817,0.69,179.68,179.65,12.16050571]
[1752830282994,16.78468397,179.69,179.66,12.16050571]
[1752830283312,22.34983826,179.69,179.65,12.16050571]
[1752830283691,0.69,179.68,179.64,12.16050571]
[1752830284013,0.69,179.68,179.63,0.03]
[1752830284014,12.85050571,179.68,179.63,0.03]
[1752830284307,16.78468397,179.66,179.63,0.03]
[1752830284618,22.35083728,179.66,179.63,0.03]
[1752830284789,23.04083728,179.66,179.63,0.03]
[1752830285110,16.78468397,179.66,179.64,12.16050571]
[1752830286314,6.25545171,179.68,179.64,12.16050571]
[1752830286485,16.78468397,179.7,179.67,12.16050571]
[1752830286688,16.78468397,179.7,179.68,12.16050571]
[1752830286901,16.78468397,179.7,179.69,12.16050571]
[1752830287099,16.78468397,179.7,179.67,12.16050571]
[1752830287301,22.34956212,179.7,179.67,12.16050571]
[1752830287506,23.03956212,179.7,179.67,12.16050571]
[1752830287709,23.03956212,179.7,179.65,7.17427907]
[1752830287710,0.06,179.71,179.68,12.16050571]
[1752830287892,0.06,179.71,179.69,12.16050571]
[1752830288215,0.75,179.71,179.68,12.16050571]
[1752830288516,6.31458313,179.71,179.67,12.16050571]
[1752830288698,0.69,179.7,179.67,12.16050571]
[1752830289399,0.69,179.7,179.68,12.16050571]
[1752830289603,0.06,179.71,179.69,12.16050571]
[1752830289806,0.06,179.71,179.66,68.9660343]
[1752830290105,0.06,179.71,179.69,12.16050571]
[1752830290307,0.69,179.7,179.68,12.16050571]
[1752830291007,5.56506,179.7,179.66,75.56050571]
[1752830291197,0.69,179.69,179.66,75.56050571]
[1752830291387,0.69,179.69,179.66,45.46050571]
[1752830291586,0.69,179.69,179.65,34.9079]
[1752830291900,0.69,179.69,179.66,12.16050571]
[1752830292093,22.34974397,179.7,179.67,12.16050571]
[1752830292307,23.03974397,179.7,179.67,12.16050571]
[1752830292690,17.47468397,179.69,179.65,34.9079]
[1752830292889,6.25567181,179.68,179.64,42.24050571]
[1752830293400,0.69,179.67,179.63,12.19050571]
[1752830293602,0.69,179.66,179.63,0.03]
[1752830293817,0.69,179.66,179.63,12.19050571]
[1752830293987,17.72617752,179.68,179.63,12.19050571]
[1752830294187,0.69,179.65,179.63,0.03]
[1752830294490,12.85050571,179.65,179.63,0.03]
[1752830294817,12.85050571,179.64,179.63,0.03]
[1752830295112,6.25668893,179.64,179.63,0.03]
[1752830295898,59.00518968,179.67,179.63,0.03]
[1752830295899,5.56640239,179.65,179.63,0.03]
[1752830296217,16.78468397,179.65,179.63,0.03]
[1752830296412,16.78468397,179.65,179.63,12.19050571]
[1752830296613,5.56513996,179.69,179.64,12.16050571]
[1752830296819,16.78468397,179.68,179.65,12.16050571]
[1752830297028,16.78468397,179.68,179.63,0.03]
[1752830297328,16.78468397,179.68,179.65,12.16050571]
[1752830297329,22.35014995,179.68,179.65,12.16050571]
[1752830297494,22.35014995,179.68,179.63,0.03]
[1752830297693,23.04014995,179.68,179.65,12.16050571]
[1752830298032,23.04014995,179.68,179.64,12.16050571]
[1752830298188,0.69,179.67,179.63,12.19050571]
[1752830298394,0.69,179.67,179.64,12.16050571]
[1752830298611,22.35014995,179.68,179.64,12.16050571]
[1752830298810,23.04014995,179.68,179.64,12.16050571]
[1752830299916,23.04014995,179.68,179.65,12.16050571]
[1752830300118,17.47468397,179.68,179.65,12.16050571]
[1752830300414,23.04024763,179.68,179.65,12.16050571]
[1752830301743,22.35024763,179.68,179.65,12.16050571]
[1752830302041,6.25579124,179.67,179.64,12.16050571]
[1752830302449,17.47468397,179.66,179.63,0.03]
[1752830302953,0.69,179.65,179.63,12.19050571]
[1752830303121,17.47468397,179.66,179.63,12.19050571]
[1752830303919,23.04089016,179.66,179.63,12.19050571]
[1752830304143,22.35089016,179.66,179.63,0.03]
[1752830304347,0.69,179.65,179.63,0.03]
[1752830304525,12.85050571,179.65,179.63,0.03]
[1752830304720,0.69,179.64,179.63,0.03]
[1752830305048,29.63518968,179.64,179.63,0.03]
[1752830305619,16.78468397,179.63,179.61,0.03]
[1752830305829,28.94518968,179.62,179.61,0.03]
[1752830306023,35.20249844,179.62,179.61,0.03]
[1752830306423,35.20249844,179.62,179.61,1e-08]
[1752830306639,16.78468397,179.61,179.59,0.03]
[1752830306844,58.94518968,179.6,179.59,0.03]
[1752830307241,59.65518968,179.6,179.59,0.03]
[1752830308145,65.22311841,179.6,179.59,0.03]
[1752830309747,53.0626127,179.6,179.59,0.03]
[1752830309921,65.22311841,179.6,179.59,0.03]
[1752830312151,17.49468397,179.6,179.59,0.03]
[1752830312453,22.3526127,179.6,179.59,0.03]
[1752830312830,23.0626127,179.6,179.59,0.03]
[1752830313755,16.78468397,179.6,179.59,0.03]
[1752830314253,16.78468397,179.62,179.59,12.19050571]
[1752830314639,0.71,179.66,179.61,12.16050571]
[1752830314849,16.78468397,179.65,179.61,12.16050571]
[1752830315349,16.78468397,179.65,179.62,12.16050571]
[1752830315739,22.35127352,179.65,179.62,12.16050571]
[1752830316262,0.71,179.65,179.6,1.6416]
[1752830316552,0.71,179.65,179.62,12.16050571]
[1752830317358,34.51094912,179.67,179.6,7.2095134]
[1752830317563,23.06044341,179.67,179.62,12.16050571]
[1752830317758,26.06,179.71,179.61,38.86761872]
[1752830318093,26.06,179.71,179.66,12.16050571]
[1752830318094,6.27483027,179.7,179.66,12.16050571]
[1752830318432,17.49468397,179.69,179.61,185.26761872]
[1752830318631,17.49468397,179.69,179.63,12.16050571]
[1752830318632,16.78468397,179.67,179.63,12.16050571]
[1752830318833,0.71,179.67,179.63,12.16050571]
[1752830319137,16.78468397,179.69,179.65,12.16050571]
[1752830319331,16.78468397,179.68,179.65,12.16050571]
[1752830319531,5.56493117,179.7,179.66,12.16050571]
[1752830319731,5.56493117,179.7,179.64,33.3]
[1752830319732,5.62453386,179.71,179.68,12.16050571]
[1752830320140,6.33453386,179.71,179.68,12.16050571]
[1752830320433,5.62453386,179.71,179.67,12.16050571]
[1752830320732,0.71,179.7,179.67,12.16050571]
[1752830321658,0.71,179.69,179.66,12.16050571]
[1752830322247,5.56510755,179.7,179.66,12.16050571]
[1752830322453,6.27510755,179.7,179.66,12.16050571]
[1752830322651,5.56510755,179.7,179.66,12.16050571]
[1752830322958,0.71,179.69,179.65,12.16050571]
[1752830323281,12.87050571,179.68,179.63,12.16050571]
[1752830323451,5.56575944,179.67,179.63,12.16050571]
[1752830323763,0.71,179.66,179.63,12.16050571]
[1752830323967,0.71,179.66,179.62,12.16050571]
[1752830324654,0.71,179.66,179.61,89.14]
[1752830324655,0.71,179.65,179.61,75.30050571]
[1752830325056,0.71,179.64,179.6,34.9416]
[1752830325268,0.71,179.64,179.6,47.10210571]
[1752830326377,5.56661832,179.65,179.61,12.16050571]
[1752830326579,6.27661832,179.65,179.61,12.16050571]
[1752830327372,0.71,179.64,179.6,13.80210571]
[1752830327570,0.71,179.64,179.59,0.03]
[1752830327571,12.16050571,179.62,179.59,0.03]
[1752830327871,12.16050571,179.6,179.59,0.03]
[1752830328084,17.72843444,179.6,179.59,0.03]
[1752830328249,5.56792873,179.6,179.59,0.03]
[1752830328457,35.22311841,179.6,179.59,0.03]
[1752830329181,23.0626127,179.6,179.59,0.03]
[1752830329381,35.22311841,179.6,179.59,0.03]
[1752830332477,28.94518968,179.58,179.57,0.03]
[1752830332686,58.76518968,179.58,179.57,0.03]
[1752830332978,59.47518968,179.58,179.57,0.03]
[1752830333682,65.04373851,179.58,179.57,0.03]
[1752830337177,65.04373851,179.58,179.53,0.03]
[1752830337178,16.78468397,179.57,179.53,0.03]
[1752830337488,16.78468397,179.57,179.51,0.03]
[1752830337489,16.78468397,179.53,179.51,0.03]
[1752830337673,58.76518968,179.52,179.51,0.03]
[1752830337880,59.43518968,179.52,179.51,0.03]
[1752830338088,16.78468397,179.51,179.49,0.03]
[1752830338382,58.76518968,179.5,179.49,0.03]
[1752830338590,59.43518968,179.5,179.49,0.03]
[1752830338898,47.27468397,179.5,179.49,0.03]
[1752830339063,54.90017139,179.5,179.49,0.03]
[1752830339470,16.78468397,179.49,179.36,1.6009]
[1752830339694,24.41017139,179.46,179.36,186.97605282]
[1752830339872,54.27017139,179.46,179.36,40.57605282]
[1752830340069,54.94017139,179.46,179.39,7.62548742]
[1752830340269,16.78468397,179.46,179.42,7.62548742]
[1752830340478,5.57078525,179.51,179.45,7.65548742]
[1752830340673,7.62548742,179.55,179.5,7.62548742]
[1752830340877,30.53,179.56,179.53,0.03]
[1752830341277,12.85797168,179.59,179.54,12.18797168]
[1752830341477,16.78468397,179.58,179.54,12.18797168]
[1752830341773,16.78468397,179.58,179.53,1.6603]
[1752830341774,16.78468397,179.55,179.53,1.6603]
[1752830341986,12.18797168,179.58,179.53,13.84827168]
[1752830342293,16.78468397,179.57,179.53,13.84827168]
[1752830342506,18.42621044,179.59,179.53,13.84827168]
[1752830342675,16.78468397,179.58,179.54,12.18797168]
[1752830343181,16.78468397,179.58,179.55,12.18797168]
[1752830343568,16.78468397,179.58,179.54,12.18797168]
[1752830343766,16.78468397,179.58,179.53,1.6603]
[1752830343994,17.45468397,179.58,179.54,12.18797168]
[1752830344300,16.78468397,179.6,179.55,12.18797168]
[1752830344604,10.0,179.69,179.55,12.18797168]
[1752830344605,6.23676823,179.64,179.59,12.18797168]
[1752830344779,6.23676823,179.64,179.56,33.47]
[1752830344780,18.42473991,179.64,179.58,12.18797168]
[1752830345097,12.18797168,179.61,179.57,26.0]
[1752830345276,12.85797168,179.61,179.57,26.0]
[1752830345598,22.35170023,179.63,179.59,12.18797168]
[1752830345766,23.02170023,179.63,179.58,12.18797168]
[1752830346277,22.35170023,179.63,179.59,12.18797168]
[1752830346473,34.53967191,179.63,179.58,12.18797168]